bitfinex/quotes_BTCUSD_20240731
["timestamp","ask_amount","ask_price","bid_price","bid_amount"]
[1722389951128,1.2934569,66351.0,66350.0,0.002913]
[1722389951337,1.29251729,66351.0,66350.0,0.002913]
[1722389951486,1.2934569,66351.0,66350.0,0.002913]
[1722389952120,1.29251729,66351.0,66350.0,0.002913]
[1722389952861,1.1837923,66351.0,66350.0,0.002913]
[1722389953087,1.29309274,66351.0,66350.0,0.002913]
[1722389953433,1.29309463,66351.0,66350.0,0.148513]
[1722389955361,0.99166763,66351.0,66350.0,0.148513]
[1722389956179,0.99177954,66351.0,66350.0,0.148513]
[1722389957386,0.98277954,66351.0,66350.0,0.146513]
[1722389957722,0.98277954,66351.0,66350.0,0.148513]
[1722389958335,0.68135254,66351.0,66350.0,0.148513]
[1722389959029,0.98277954,66351.0,66350.0,0.148513]
[1722389959449,0.1197983,66351.0,66350.0,0.148513]
[1722389959660,0.05742005,66351.0,66350.0,0.148513]
[1722389959872,0.05835966,66351.0,66350.0,0.148513]
[1722389960484,0.05835966,66351.0,66350.0,0.146513]
[1722389960871,0.05935966,66351.0,66350.0,0.156513]
[1722389962047,0.05842005,66351.0,66350.0,0.608659]
[1722389962343,0.0392596,66351.0,66350.0,0.90709]
[1722389962543,0.0392596,66351.0,66350.0,0.612659]
[1722389962774,0.03919265,66351.0,66350.0,0.612659]
[1722389962971,0.04013226,66351.0,66350.0,0.612659]
[1722389963129,0.03913211,66351.0,66350.0,0.598659]
[1722389963335,0.01866474,66351.0,66350.0,0.620659]
[1722389963550,0.01772513,66351.0,66350.0,0.620659]
[1722389963752,0.01772513,66351.0,66350.0,0.609659]
[1722389963951,0.01872513,66351.0,66350.0,0.612659]
[1722389964275,0.01872513,66351.0,66350.0,0.626659]
[1722389964612,0.01872513,66351.0,66350.0,0.174513]
[1722389964838,0.01872513,66351.0,66350.0,0.325228]
[1722389965059,0.01872513,66351.0,66350.0,0.626659]
[1722389965060,0.16927117,66351.0,66350.0,0.626659]
[1722389965173,0.05652055,66351.0,66350.0,0.626659]
[1722389965381,0.16925666,66351.0,66350.0,0.626659]
[1722389965783,0.13146124,66351.0,66350.0,0.626659]
[1722389965979,0.1698686,66351.0,66350.0,0.626659]
[1722389966229,0.0571431,66351.0,66350.0,0.626659]
[1722389966428,0.16985561,66351.0,66350.0,0.626659]
[1722389969343,0.16982504,66351.0,66350.0,0.626659]
[1722389970379,0.05808271,66351.0,66350.0,0.626659]
[1722389970739,0.05808271,66351.0,66350.0,0.174513]
[1722389970935,0.16982504,66351.0,66350.0,0.174513]
[1722389971379,0.16982504,66351.0,66350.0,0.325228]
[1722389972468,0.01872513,66351.0,66350.0,0.325228]
[1722389972669,0.13139858,66351.0,66350.0,0.325228]
[1722389972879,0.15332658,66351.0,66350.0,0.325228]
[1722389973082,0.15332655,66351.0,66350.0,0.325228]
[1722389973292,0.16941383,66351.0,66350.0,0.325228]
[1722389974280,0.0567404,66351.0,66350.0,0.325228]
[1722389974438,0.05768001,66351.0,66350.0,0.325228]
[1722389974843,0.05767724,66351.0,66350.0,0.325228]
[1722389975343,0.05673763,66351.0,66350.0,0.325228]
[1722389976379,0.05767724,66351.0,66350.0,0.325228]
[1722389979216,0.01966474,66351.0,66350.0,0.325228]
[1722389979392,0.01872513,66351.0,66350.0,0.325228]
[1722389979566,0.05665073,66351.0,66350.0,0.325228]
[1722389979770,0.05759034,66351.0,66350.0,0.325228]
[1722389983103,0.05772636,66351.0,66350.0,0.325228]
[1722389984836,0.05772636,66351.0,66350.0,0.174513]
[1722389985640,0.05772636,66351.0,66350.0,0.325228]
[1722389987074,0.05772636,66351.0,66350.0,0.626659]
[1722389987273,0.05772636,66351.0,66350.0,0.325228]
[1722389989204,0.01966474,66351.0,66350.0,0.325228]
[1722389989418,0.05668486,66351.0,66350.0,0.325228]
[1722389989824,0.05762447,66351.0,66350.0,0.325228]
[1722389990410,0.17027329,66351.0,66350.0,0.325228]
[1722389990639,0.16933368,66351.0,66350.0,0.325228]
[1722389992520,0.05662088,66351.0,66350.0,0.325228]
[1722389992725,0.16931999,66351.0,66350.0,0.325228]
[1722389992934,0.01872513,66351.0,66350.0,0.325228]
[1722389993133,0.16927151,66351.0,66350.0,0.325228]
[1722389994389,0.05657384,66351.0,66350.0,0.325228]
[1722389994800,0.0565128,66351.0,66350.0,0.325228]
[1722389997436,0.04042552,66351.0,66350.0,0.325228]
[1722389997640,0.04042552,66351.0,66350.0,0.626659]
[1722389997798,0.04042552,66351.0,66350.0,0.92809]
[1722389997998,0.05656322,66351.0,66350.0,0.92809]
[1722389998202,0.00263785,66351.0,66350.0,1.282521]
[1722389998444,0.00263785,66351.0,66350.0,1.43515404]
[1722389998649,0.00093961,66356.0,66350.0,1.43515404]
[1722389998650,0.00093961,66356.0,66355.0,1.086931]
[1722389998894,0.00083,66359.0,66358.0,0.484092]
[1722389999051,0.00083,66359.0,66358.0,1.312682]
[1722389999268,0.00083,66359.0,66358.0,1.333682]
[1722389999470,0.00083,66359.0,66358.0,1.313682]
[1722390000446,0.00084,66360.0,66358.0,1.327682]
[1722390000661,0.00710961,66367.0,66366.0,0.677838]
[1722390001081,0.02054166,66367.0,66366.0,0.677838]
[1722390001286,0.00710961,66367.0,66366.0,0.677838]
[1722390002154,0.00710961,66367.0,66366.0,0.98817681]
[1722390002625,0.00710961,66367.0,66366.0,1.00217681]
[1722390003264,0.00710961,66367.0,66366.0,1.007197]
[1722390009024,0.00710961,66367.0,66366.0,1.308556]
[1722390009252,0.00710961,66367.0,66366.0,1.343556]
[1722390009491,0.00710961,66367.0,66366.0,1.331556]
[1722390010054,0.00710961,66367.0,66366.0,1.317556]
[1722390010274,0.00710961,66367.0,66366.0,1.363556]
[1722390011211,0.00710961,66367.0,66366.0,1.349556]
[1722390011416,0.00710961,66367.0,66366.0,1.363556]
[1722390012341,0.00710961,66367.0,66366.0,1.341556]
[1722390012569,0.00710961,66367.0,66366.0,1.331556]
[1722390012765,0.00710961,66367.0,66366.0,1.341556]
[1722390013383,0.0638,66382.0,66374.0,0.301321]
[1722390013581,0.0638,66382.0,66377.0,0.0865]
[1722390013582,0.301291,66381.0,66377.0,0.0865]
[1722390013782,0.301291,66381.0,66375.0,0.1387122]
[1722390013786,0.150648,66380.0,66375.0,0.1387122]
[1722390014107,0.01362061,66380.0,66376.0,0.150656]
[1722390014280,0.01362061,66380.0,66375.0,0.0865]
[1722390014486,0.0015542,66379.0,66376.0,0.150656]
[1722390014692,0.0015542,66379.0,66375.0,0.0865]
[1722390014865,0.0015542,66379.0,66376.0,0.150656]
[1722390015052,0.0136141,66378.0,66376.0,0.150656]
[1722390015404,0.0015542,66377.0,66376.0,0.150656]
[1722390015627,0.01361085,66377.0,66376.0,0.150656]
[1722390015759,0.0015542,66380.0,66376.0,0.150656]
[1722390015960,0.01361085,66377.0,66376.0,0.150656]
[1722390016159,0.0015542,66380.0,66376.0,0.150656]
[1722390016434,0.01361085,66377.0,66376.0,0.150656]
[1722390016564,0.0015542,66380.0,66376.0,0.16663578]
[1722390016925,0.0015542,66380.0,66376.0,0.15963578]
[1722390017107,0.0015542,66380.0,66377.0,0.00897978]
[1722390017324,0.0015542,66378.0,66377.0,0.00897978]
[1722390017735,0.0151683,66378.0,66377.0,0.00897978]
[1722390017946,0.0136141,66378.0,66377.0,0.00897978]
[1722390018144,0.0015542,66380.0,66377.0,0.00897978]
[1722390018352,0.0151683,66378.0,66377.0,0.01497978]
[1722390018522,0.0015542,66378.0,66377.0,0.01497978]
[1722390018724,0.01407307,66378.0,66377.0,0.00897978]
[1722390018928,0.01251887,66378.0,66377.0,0.00897978]
[1722390019291,0.01251887,66378.0,66377.0,0.01597978]
[1722390019493,0.150648,66380.0,66377.0,0.02497978]
[1722390019692,0.01252429,66379.0,66377.0,0.02497978]
[1722390019895,0.00129462,66378.0,66377.0,0.02497978]
[1722390020207,0.01381566,66378.0,66377.0,0.02497978]
[1722390020414,0.01381566,66378.0,66377.0,0.01797978]
[1722390020615,0.01252104,66378.0,66377.0,0.01797978]
[1722390020818,0.01252104,66378.0,66377.0,0.00897978]
[1722390021013,0.01252104,66378.0,66377.0,0.01497978]
[1722390021626,0.15168781,66379.0,66377.0,0.00897978]
[1722390021840,0.01252104,66378.0,66377.0,0.01797978]
[1722390022049,0.01393094,66378.0,66377.0,0.01797978]
[1722390022277,0.01252104,66378.0,66377.0,0.01797978]
[1722390022446,0.01407524,66378.0,66377.0,0.01797978]
[1722390022672,0.16472724,66378.0,66377.0,0.02297978]
[1722390022891,0.01252104,66378.0,66377.0,0.01797978]
[1722390023065,0.0015542,66379.0,66377.0,0.01797978]
[1722390023273,0.01239488,66378.0,66377.0,0.01597978]
[1722390023716,0.67157701,66378.0,66377.0,0.01597978]
[1722390023918,0.97288101,66378.0,66377.0,0.01597978]
[1722390024123,1.37418501,66378.0,66377.0,0.01597978]
[1722390024338,1.48660247,66378.0,66377.0,0.01597978]
[1722390024498,1.64401403,66378.0,66377.0,0.01597978]
[1722390024712,1.64401403,66378.0,66377.0,0.02397978]
[1722390024713,1.53159657,66378.0,66377.0,0.02397978]
[1722390024918,1.54069253,66378.0,66377.0,0.02397978]
[1722390025119,1.46899058,66378.0,66377.0,0.02397978]
[1722390025326,1.5408592,66378.0,66377.0,0.00897978]
[1722390025529,1.51887943,66378.0,66377.0,0.01397978]
[1722390025986,1.51887943,66378.0,66377.0,0.00897978]
[1722390026347,1.82018343,66378.0,66377.0,0.00897978]
[1722390026769,1.95506688,66378.0,66377.0,0.00897978]
[1722390027179,2.1057612,66378.0,66377.0,0.00897978]
[1722390027380,2.1057612,66378.0,66376.0,0.000913]
[1722390027381,1.054581,66377.0,66376.0,0.000913]
[1722390027590,0.45214,66351.0,66350.0,0.000913]
[1722390027794,1.24360726,66351.0,66350.0,0.000913]
[1722390027950,1.25626826,66351.0,66350.0,0.000913]
[1722390028750,1.25626826,66351.0,66350.0,0.004913]
[1722390028952,1.16976826,66351.0,66350.0,0.000913]
[1722390029179,1.32138521,66351.0,66350.0,0.000913]
[1722390029947,1.50788521,66351.0,66350.0,0.000913]
[1722390030280,1.80923346,66351.0,66350.0,0.000913]
[1722390030427,1.50780646,66351.0,66350.0,0.000913]
[1722390030839,1.80623346,66351.0,66350.0,0.000913]
[1722390031039,1.8062308,66351.0,66350.0,0.000913]
[1722390031242,1.8092308,66351.0,66350.0,0.000913]
[1722390031603,1.51612309,66351.0,66350.0,0.000913]
[1722390031813,1.27808755,66351.0,66350.0,0.000913]
[1722390032192,1.28008755,66351.0,66350.0,0.000913]
[1722390032393,1.28901357,66351.0,66350.0,0.000913]
[1722390033180,1.28747487,66351.0,66350.0,0.000913]
[1722390034210,1.2876307,66351.0,66350.0,0.000913]
[1722390034420,1.2906307,66351.0,66350.0,0.000913]
[1722390034609,1.2249307,66351.0,66350.0,0.000913]
[1722390035014,1.33054636,66351.0,66350.0,0.000913]
[1722390035454,1.33654636,66351.0,66350.0,0.000913]
[1722390037452,1.33658678,66351.0,66350.0,0.000913]
[1722390040541,1.22797112,66351.0,66350.0,0.000913]
[1722390040764,0.92654412,66351.0,66350.0,0.000913]
[1722390041083,1.22797112,66351.0,66350.0,0.000913]
[1722390041282,1.22818607,66351.0,66350.0,0.000913]
[1722390041487,1.22618607,66351.0,66350.0,0.000913]
[1722390041684,1.22218607,66351.0,66350.0,0.000913]
[1722390042731,1.22318607,66351.0,66350.0,0.000913]
[1722390044838,1.34550468,66351.0,66350.0,0.000913]
[1722390045045,1.48990468,66351.0,66350.0,0.000913]
[1722390045583,1.79133168,66351.0,66350.0,0.000913]
[1722390046439,1.79033168,66351.0,66350.0,0.000913]
[1722390046863,1.79933168,66351.0,66350.0,0.001913]
[1722390047521,1.79938696,66351.0,66350.0,0.001913]
[1722390047689,1.80238696,66351.0,66350.0,0.002913]
[1722390049341,1.80238696,66351.0,66324.0,0.0801]
[1722390049342,0.753862,66325.0,66324.0,0.0801]
[1722390049627,0.753862,66325.0,66320.0,0.0761]
[1722390049628,0.753907,66321.0,66320.0,0.0761]
[1722390050066,0.77137977,66321.0,66320.0,0.0761]
[1722390050271,1.07294277,66321.0,66320.0,0.0761]
[1722390051112,0.77137977,66321.0,66320.0,0.0761]
[1722390051917,0.77137977,66321.0,66320.0,0.0801]
[1722390052293,0.77237977,66321.0,66320.0,0.0811]
[1722390054399,0.77237977,66321.0,66320.0,0.005]
[1722390054400,1.18133675,66321.0,66320.0,0.005]
[1722390054603,1.21875411,66321.0,66320.0,0.005]
[1722390055130,0.753965,66316.0,66315.0,0.1423]
[1722390055501,0.86376814,66316.0,66315.0,0.1423]
[1722390055683,1.20305988,66316.0,66315.0,0.0812]
[1722390057207,1.055596,66313.0,66312.0,0.0643]
[1722390057654,1.0734052,66313.0,66312.0,0.0643]
[1722390058125,0.4702072,66313.0,66312.0,0.0643]
[1722390058327,0.1686082,66313.0,66312.0,0.1414]
[1722390058957,0.1686082,66313.0,66312.0,0.1424]
[1722390058958,0.4712072,66313.0,66312.0,0.1424]
[1722390060103,0.4722072,66313.0,66312.0,0.1494]
[1722390060472,0.4722072,66313.0,66312.0,0.150313]
[1722390061319,0.0198092,66313.0,66312.0,0.150313]
[1722390063562,0.1706082,66313.0,66312.0,0.150313]
[1722390063776,0.4722072,66313.0,66312.0,0.150313]
[1722390064208,0.1706082,66313.0,66312.0,0.150313]
[1722390064456,0.0198092,66313.0,66312.0,0.150313]
[1722390065007,0.4722072,66313.0,66312.0,0.150313]
[1722390065638,0.1706082,66313.0,66312.0,0.150313]
[1722390066775,0.0198092,66313.0,66312.0,0.150313]
[1722390067281,0.1706082,66313.0,66312.0,0.150313]
[1722390067713,0.1706082,66313.0,66312.0,0.008913]
[1722390067714,0.7738062,66313.0,66312.0,0.008913]
[1722390068125,1.0754052,66313.0,66312.0,0.008913]
[1722390068748,1.1385052,66313.0,66312.0,0.008913]
[1722390068950,1.17724122,66313.0,66312.0,0.008913]
[1722390069153,1.32793554,66313.0,66312.0,0.008913]
[1722390069380,1.11414174,66313.0,66312.0,0.008913]
[1722390072063,1.12294509,66313.0,66312.0,0.008913]
[1722390072469,1.12350452,66313.0,66312.0,0.008913]
[1722390072745,1.42510352,66313.0,66312.0,0.008913]
[1722390072949,1.38580755,66313.0,66312.0,0.008913]
[1722390073161,1.57579293,66313.0,66312.0,0.008913]
[1722390075032,1.12349961,66313.0,66312.0,0.008913]
[1722390079148,1.12288057,66313.0,66312.0,0.008913]
[1722390081036,1.12288057,66313.0,66312.0,0.073313]
[1722390082402,1.26478057,66313.0,66312.0,0.008913]
[1722390082568,1.41547489,66313.0,66312.0,0.008913]
[1722390082745,1.26478057,66313.0,66312.0,0.008913]
[1722390082949,1.26467171,66313.0,66312.0,0.008913]
[1722390083446,1.12277171,66313.0,66312.0,0.008913]
[1722390085728,1.12282459,66313.0,66312.0,0.008913]
[1722390089342,1.12294389,66313.0,66312.0,0.008913]
[1722390091272,1.23496837,66313.0,66312.0,0.008913]
[1722390092086,1.38566269,66313.0,66312.0,0.008913]
[1722390092309,1.34715165,66313.0,66312.0,0.008913]
[1722390092510,1.47630287,66313.0,66312.0,0.008913]
[1722390092660,1.58713229,66313.0,66312.0,0.008913]
[1722390092861,1.88873129,66313.0,66312.0,0.008913]
[1722390093065,1.88873034,66313.0,66312.0,0.008913]
[1722390093265,2.02331906,66313.0,66312.0,0.008913]
[1722390093878,1.88873034,66313.0,66312.0,0.008913]
[1722390094724,1.88773034,66313.0,66312.0,0.007913]
[1722390094925,1.89273034,66313.0,66312.0,0.008913]
[1722390095699,1.89334837,66313.0,66312.0,0.008913]
[1722390096024,2.19394737,66313.0,66312.0,0.001913]
[1722390096226,2.19694737,66313.0,66312.0,0.001913]
[1722390096426,1.89534837,66313.0,66312.0,0.001913]
[1722390096631,2.19694737,66313.0,66312.0,0.001913]
[1722390097564,2.20194737,66313.0,66312.0,0.002913]
[1722390099125,2.201992,66313.0,66312.0,0.002913]
[1722390099326,1.900393,66313.0,66312.0,0.002913]
[1722390100048,2.201992,66313.0,66312.0,0.002913]
[1722390100861,1.900393,66313.0,66312.0,0.002913]
[1722390101101,1.74969868,66313.0,66312.0,0.002913]
[1722390102296,1.63820755,66313.0,66312.0,0.002913]
[1722390102534,1.74984228,66313.0,66312.0,0.002913]
[1722390102725,1.63820755,66313.0,66312.0,0.002913]
[1722390102926,1.74983329,66313.0,66312.0,0.002913]
[1722390103177,1.67243329,66313.0,66312.0,0.002913]
[1722390103604,1.82312761,66313.0,66312.0,0.002913]
[1722390104581,1.67243329,66313.0,66312.0,0.002913]
[1722390105619,1.67246069,66313.0,66312.0,0.002913]
[1722390106198,1.73293469,66313.0,66312.0,0.002913]
[1722390107147,1.66893469,66313.0,66312.0,0.002913]
[1722390108427,1.6847162,66313.0,66312.0,0.002913]
[1722390112434,1.68521428,66313.0,66312.0,0.002913]
[1722390112763,1.57306306,66313.0,66312.0,0.002913]
[1722390113011,1.32314139,66313.0,66312.0,0.079613]
[1722390113365,0.94801378,66313.0,66312.0,0.140013]
[1722390113571,1.02146762,66313.0,66312.0,0.140013]
[1722390113812,0.94801378,66313.0,66312.0,0.140013]
[1722390114690,1.31195852,66313.0,66312.0,0.140013]
[1722390114875,1.38531946,66313.0,66312.0,0.140013]
[1722390115347,1.38531946,66313.0,66312.0,0.079613]
[1722390115540,1.2733358,66313.0,66312.0,0.079613]
[1722390115715,1.38514061,66313.0,66312.0,0.079613]
[1722390116923,1.53676528,66313.0,66312.0,0.079613]
[1722390117126,1.53676528,66313.0,66312.0,0.002913]
[1722390117470,1.32279487,66313.0,66312.0,0.002913]
[1722390118192,1.47441954,66313.0,66312.0,0.002913]
[1722390118842,1.21099006,66313.0,66312.0,0.002913]
[1722390119026,1.32328214,66313.0,66312.0,0.002913]
[1722390119478,1.62488114,66313.0,66312.0,0.002913]
[1722390119791,1.77557546,66313.0,66312.0,0.002913]
[1722390121443,1.77577429,66313.0,66312.0,0.002913]
[1722390121842,1.77577678,66313.0,66312.0,0.002913]
[1722390123701,1.77560007,66313.0,66312.0,0.002913]
[1722390124125,1.62490575,66313.0,66312.0,0.002913]
[1722390124533,1.62485464,66313.0,66312.0,0.002913]
[1722390128009,1.62486281,66313.0,66312.0,0.002913]
[1722390131391,1.62427652,66313.0,66312.0,0.002913]
[1722390132079,1.61758172,66313.0,66312.0,0.002913]
[1722390132416,1.76827604,66313.0,66312.0,0.002913]
[1722390132779,1.61758172,66313.0,66312.0,0.002913]
[1722390133226,1.70428172,66313.0,66312.0,0.002913]
[1722390133581,1.70432641,66313.0,66312.0,0.002913]
[1722390134413,1.59259426,66313.0,66312.0,0.002913]
[1722390134617,1.70423667,66313.0,66312.0,0.002913]
[1722390134890,1.85493099,66313.0,66312.0,0.002913]
[1722390136153,1.91763099,66313.0,66312.0,0.002913]
[1722390136378,1.99863099,66313.0,66312.0,0.002913]
[1722390137826,1.99614793,66313.0,66312.0,0.002913]
[1722390139285,2.29774693,66313.0,66312.0,0.002913]
[1722390139686,1.99614793,66313.0,66312.0,0.002913]
[1722390141351,2.29775368,66313.0,66312.0,0.002913]
[1722390141719,2.29776995,66313.0,66312.0,0.002913]
[1722390142351,1.70177663,66313.0,66312.0,0.002913]
[1722390142549,1.70177663,66313.0,66312.0,0.068913]
[1722390142762,1.70177663,66313.0,66312.0,0.145013]
[1722390144458,1.704445,66313.0,66312.0,0.145013]
[1722390147455,1.704445,66313.0,66312.0,0.079013]
[1722390147922,1.70418944,66313.0,66312.0,0.079013]
[1722390148865,1.85488376,66313.0,66312.0,0.079013]
[1722390150564,1.85488376,66313.0,66312.0,0.002913]
[1722390151243,1.85473494,66313.0,66312.0,0.002913]
[1722390151436,2.31413394,66313.0,66312.0,0.002913]
[1722390151646,2.31342538,66313.0,66312.0,0.002913]
[1722390152997,2.31342538,66313.0,66309.0,0.009339]
[1722390152998,1.668871,66310.0,66309.0,0.009339]
[1722390153223,1.668871,66310.0,66300.0,0.24156476]
[1722390153224,0.830535,66301.0,66300.0,0.24156476]
[1722390153436,1.6312808,66301.0,66300.0,0.01372031]
[1722390153615,2.18068694,66301.0,66300.0,0.01372031]
[1722390153810,2.18646845,66301.0,66300.0,0.01372031]
[1722390154071,2.18741008,66301.0,66300.0,0.01372031]
[1722390154513,2.18905962,66301.0,66300.0,0.01372031]
[1722390154879,2.18705962,66301.0,66300.0,0.01372031]
[1722390155085,2.19916854,66301.0,66300.0,0.01472031]
[1722390155306,2.19805962,66301.0,66300.0,0.01472031]
[1722390155515,1.659124,66300.0,66292.0,0.009339]
[1722390155729,2.02259745,66300.0,66292.0,0.009339]
[1722390155863,1.055915,66293.0,66292.0,0.009339]
[1722390156069,1.35394397,66293.0,66292.0,0.009339]
[1722390156335,1.73306014,66293.0,66292.0,0.009339]
[1722390156465,1.74489237,66293.0,66292.0,0.009339]
[1722390156825,1.74669275,66293.0,66292.0,0.009339]
[1722390157047,1.59610857,66293.0,66292.0,0.009339]
[1722390157591,1.59988661,66293.0,66292.0,0.009339]
[1722390158696,1.60088661,66293.0,66292.0,0.009339]
[1722390159903,1.60999331,66293.0,66292.0,0.009339]
[1722390160301,1.74482838,66293.0,66292.0,0.009339]
[1722390160502,1.76068763,66293.0,66292.0,0.009339]
[1722390160904,1.76023215,66293.0,66292.0,0.009339]
[1722390161309,2.20671928,66293.0,66292.0,0.009339]
[1722390161994,2.76990789,66293.0,66292.0,1e-06]
[1722390162193,1.65952,66284.0,66282.0,0.009339]
[1722390162439,1.58197965,66284.0,66282.0,0.009339]
[1722390162573,2.17327088,66284.0,66282.0,0.009339]
[1722390162773,1.96203362,66284.0,66282.0,0.009339]
[1722390162980,2.03197126,66284.0,66282.0,0.009339]
[1722390163380,2.07784138,66284.0,66282.0,0.009339]
[1722390163578,2.06611841,66284.0,66282.0,0.009339]
[1722390163795,2.0777834,66284.0,66282.0,0.009339]
[1722390163987,2.07807896,66284.0,66282.0,0.009339]
[1722390167348,2.04016822,66284.0,66282.0,0.009339]
[1722390167519,2.07777958,66284.0,66282.0,0.009339]
[1722390170331,0.01,66283.0,66282.0,0.009339]
[1722390170528,0.01,66283.0,66271.0,0.009339]
[1722390170529,0.150893,66272.0,66271.0,0.009339]
[1722390170728,0.87877636,66272.0,66271.0,0.009339]
[1722390170948,1.89560073,66272.0,66271.0,0.009339]
[1722390171204,1.89457225,66272.0,66271.0,0.009339]
[1722390171407,1.59278625,66272.0,66271.0,0.009339]
[1722390171760,1.59278625,66272.0,66271.0,0.004339]
[1722390171761,1.50608625,66272.0,66271.0,0.004339]
[1722390171990,1.59458663,66272.0,66271.0,0.070239]
[1722390172574,1.60458663,66272.0,66271.0,0.070239]
[1722390172976,1.59458663,66272.0,66271.0,0.070239]
[1722390173150,1.3181978,66272.0,66271.0,0.151939]
[1722390173395,0.92531463,66272.0,66271.0,0.151939]
[1722390173861,0.82585893,66272.0,66271.0,0.151939]
[1722390174053,1.11464493,66272.0,66271.0,0.151939]
[1722390174461,1.12564493,66272.0,66271.0,0.151939]
[1722390174614,1.11764493,66272.0,66271.0,0.151939]
[1722390174811,1.11549349,66272.0,66271.0,0.151939]
[1722390175016,1.11849349,66272.0,66271.0,0.151939]
[1722390175236,1.22449349,66272.0,66271.0,0.151939]
[1722390175598,1.36682256,66272.0,66271.0,0.151939]
[1722390177060,1.36686238,66272.0,66271.0,0.151939]
[1722390177459,1.22453331,66272.0,66271.0,0.151939]
[1722390179133,1.22424593,66272.0,66271.0,0.151939]
[1722390180593,1.22410016,66272.0,66271.0,0.151939]
[1722390181026,1.18736631,66272.0,66271.0,0.151939]
[1722390181149,1.22409401,66272.0,66271.0,0.151939]
[1722390182926,1.22407206,66272.0,66271.0,0.151939]
[1722390184957,0.92228606,66272.0,66271.0,0.151939]
[1722390185690,0.91928606,66272.0,66271.0,0.151939]
[1722390186175,0.91943006,66272.0,66271.0,0.151939]
[1722390187026,0.91343006,66272.0,66271.0,0.151939]
[1722390187226,0.9075815,66272.0,66271.0,0.146939]
[1722390187863,0.0531165,66272.0,66271.0,0.146939]
[1722390189050,0.0541165,66272.0,66271.0,0.146939]
[1722390189380,0.05415636,66272.0,66271.0,0.146939]
[1722390189791,0.05415636,66272.0,66271.0,0.147852]
[1722390190417,0.20404936,66272.0,66271.0,0.147852]
[1722390190620,0.20104936,66272.0,66271.0,0.147852]
[1722390190824,0.05215636,66272.0,66271.0,0.150852]
[1722390191242,0.05115636,66272.0,66271.0,0.147852]
[1722390191441,0.05215636,66272.0,66271.0,0.150852]
[1722390193114,0.01526675,66272.0,66271.0,0.9083467]
[1722390193324,0.0867,66296.0,66278.0,0.139]
[1722390193325,0.11216536,66290.0,66278.0,0.139]
[1722390193534,0.00083,66292.0,66288.0,0.2257]
[1722390193535,0.03699108,66289.0,66288.0,0.2257]
[1722390193745,0.03699108,66289.0,66288.0,0.139]
[1722390193746,0.00774065,66289.0,66288.0,0.139]
[1722390193959,0.04473173,66289.0,66288.0,0.139]
[1722390194174,0.04473173,66289.0,66288.0,0.1421]
[1722390194175,0.19561439,66289.0,66288.0,0.1421]
[1722390194831,0.79903239,66289.0,66288.0,0.1421]
[1722390195269,0.79903239,66289.0,66288.0,0.1451]
[1722390195270,1.22156633,66289.0,66288.0,0.1451]
[1722390195903,0.91923667,66289.0,66288.0,0.1421]
[1722390196155,0.79941173,66289.0,66288.0,0.1421]
[1722390196362,0.79941173,66289.0,66288.0,0.1451]
[1722390197179,0.79941173,66289.0,66288.0,0.1501]
[1722390197407,1.3346973,66289.0,66288.0,0.1501]
[1722390197618,1.3346973,66289.0,66288.0,0.1471]
[1722390197619,1.21328609,66289.0,66288.0,0.1471]
[1722390197822,0.80041173,66289.0,66288.0,0.1421]
[1722390198031,0.49870273,66289.0,66288.0,0.1421]
[1722390198439,0.80041173,66289.0,66288.0,0.1421]
[1722390199081,0.76204131,66289.0,66288.0,0.1421]
[1722390199289,0.79975885,66289.0,66288.0,0.1421]
[1722390199494,0.79975885,66289.0,66288.0,0.1451]
[1722390200434,1.10146785,66289.0,66288.0,0.1451]
[1722390200633,1.10146785,66289.0,66288.0,0.1421]
[1722390200831,1.10146785,66289.0,66288.0,0.1471]
[1722390201031,1.10246785,66289.0,66288.0,0.1471]
[1722390201231,0.79975885,66289.0,66288.0,0.1471]
[1722390201431,0.79975885,66289.0,66288.0,0.1421]
[1722390201682,0.79975885,66289.0,66288.0,0.1451]
[1722390202296,0.79975885,66289.0,66288.0,0.1421]
[1722390202495,0.79959666,66289.0,66288.0,0.1461]
[1722390202849,0.00776931,66289.0,66288.0,0.1461]
[1722390203059,0.19619895,66289.0,66288.0,0.1461]
[1722390203263,0.1524082,66289.0,66288.0,0.1461]
[1722390203468,0.1585302,66289.0,66288.0,0.1461]
[1722390203944,0.1585302,66289.0,66288.0,0.1421]
[1722390204364,0.1585302,66289.0,66288.0,0.1451]
[1722390204571,0.0076762,66289.0,66288.0,0.1451]
[1722390204989,0.15085,66291.0,66288.0,0.1451]
[1722390205190,0.00928925,66290.0,66289.0,0.1454]
[1722390205595,0.15858705,66290.0,66289.0,0.1454]
[1722390206825,0.00773505,66290.0,66289.0,0.1454]
[1722390207237,0.00773505,66290.0,66289.0,0.29927085]
[1722390207442,0.00773505,66290.0,66289.0,0.60897985]
[1722390207443,0.00873505,66290.0,66289.0,0.60897985]
[1722390207644,0.001,66290.0,66289.0,0.91068885]
[1722390207851,0.001,66291.0,66290.0,0.452556]
[1722390208057,0.001,66291.0,66290.0,0.593856]
[1722390208171,0.00083,66292.0,66291.0,0.15085]
[1722390208375,0.00083,66292.0,66291.0,0.29315]
[1722390208573,0.00083,66292.0,66291.0,0.59385]
[1722390208978,0.00083,66292.0,66291.0,0.59285]
[1722390209340,0.00083,66292.0,66291.0,0.59185]
[1722390209889,0.00083,66292.0,66291.0,0.89355]
[1722390210123,0.00183,66292.0,66291.0,0.90355]
[1722390210579,0.00283,66292.0,66291.0,1.21425]
[1722390210787,0.00283,66292.0,66291.0,1.22625]
[1722390211197,0.00283,66292.0,66291.0,1.23725]
[1722390211458,0.00283,66292.0,66291.0,1.24925]
[1722390211651,0.00183,66292.0,66291.0,1.22825]
[1722390211811,0.00083,66292.0,66291.0,1.21825]
[1722390212010,0.00183,66292.0,66291.0,1.22825]
[1722390212343,0.00283,66292.0,66291.0,1.24125]
[1722390212961,0.00183,66292.0,66291.0,1.23825]
[1722390213313,0.00183,66292.0,66291.0,1.24225]
[1722390213874,0.00283,66292.0,66291.0,1.27625]
[1722390214075,0.00283,66292.0,66291.0,1.27825]
[1722390214269,0.00183,66292.0,66291.0,1.26425]
[1722390214474,0.00283,66292.0,66291.0,1.27825]
[1722390214684,0.00183,66292.0,66291.0,1.26425]
[1722390215098,0.00183,66292.0,66291.0,1.57995]
[1722390215309,0.00183,66292.0,66291.0,1.65255]